fUSD/lending_fUSD_20250804
["ID","MTS","AMOUNT","RATE_DAILY","PERIOD"]
[377244429,1754306044617,-914.89,0.00041643,2]
[377244430,1754306044633,-1754.05,0.00041643,2]
[377244431,1754306044650,-1464.44,0.00041643,2]
[377244432,1754306044664,-1593.33,0.00041643,2]
[377244433,1754306044678,-773.62,0.00041643,2]
[377244434,1754306044693,-1378.84,0.00041643,2]
[377244435,1754306044709,-759.33,0.00041643,2]
[377244436,1754306044725,-652.46,0.00041643,2]
[377244437,1754306044737,-557.78,0.00041643,2]
[377244438,1754306044750,-2045.74,0.00041643,2]
[377244439,1754306044767,-4332.09,0.00041643,2]
[377244440,1754306044778,-783.24,0.00041643,2]
[377244441,1754306044791,-505.58,0.00041643,2]
[377244442,1754306044806,-781.05,0.00041643,2]
[377244443,1754306044818,-1582.56,0.00041643,2]
[377244444,1754306044832,-437.18,0.00041643,2]
[377244445,1754306044845,-400.0,0.00041643,2]
[377244446,1754306044858,-2822.69,0.00041643,2]
[377244447,1754306044871,-958.47,0.00041643,2]
[377244448,1754306044885,-4257.32,0.00041643,2]
[377244449,1754306044898,-1692.49,0.00041643,2]
[377244450,1754306044911,-8447.34,0.00041643,2]
[377244451,1754306044924,-1474.41,0.00041643,2]
[377244452,1754306044937,-12684.74,0.00041643,2]
[377244453,1754306044949,-8555.46,0.00041643,2]
[377244454,1754306044968,-1233.77,0.00041643,2]
[377244455,1754306044980,-1370.77,0.00041643,2]
[377244456,1754306045000,-400.0,0.00041643,2]
[377244457,1754306045012,-920.62,0.00041643,2]
[377244458,1754306045024,-1888.39,0.00041643,2]
[377244459,1754306045038,-1431.25,0.00041643,2]
[377244460,1754306045050,-1147.83,0.00041643,2]
[377244461,1754306045063,-1817.19,0.00041643,2]
[377244462,1754306045076,-2271.19,0.00041643,2]
[377244463,1754306045089,-1907.39,0.00041643,2]
[377244464,1754306045102,-400.0,0.00041643,2]
[377244465,1754306045115,-2068.75,0.00041643,2]
[377244466,1754306045128,-2687.79,0.00041643,2]
[377244467,1754306045142,-2214.61,0.00041643,2]
[377244468,1754306045155,-452.73447985,0.00041643,2]
[377244469,1754306045167,-400.0,0.00041643,2]
[377244470,1754306045180,-802.2,0.00041643,2]
[377244471,1754306045191,-670.02,0.00041643,2]
[377244472,1754306045203,-78789.54,0.00041643,2]
[377244473,1754306045215,-1614.22,0.00041643,2]
[377244474,1754306045227,-579.73,0.00041643,2]
[377244475,1754306045239,-1690.87,0.00041643,2]
[377244476,1754306045252,-1475.5,0.00041643,2]
[377244477,1754306045265,-1594.85,0.00041643,2]
[377244478,1754306045277,-400.0,0.00041643,2]
[377244479,1754306045290,-11200.4,0.00041643,2]
[377244480,1754306045304,-1475.71,0.00041643,2]
[377244481,1754306045318,-1258.18,0.00041643,2]
[377244482,1754306045331,-1043.71,0.00041643,2]
[377244483,1754306045345,-2169.93,0.00041643,2]
[377244484,1754306045358,-1778.93,0.00041643,2]
[377244485,1754306045372,-498.32,0.00041643,2]
[377244486,1754306045386,-898.73,0.00041643,2]
[377244487,1754306045398,-3118.04,0.00041643,2]
[377244488,1754306045411,-1556.28,0.00041643,2]
[377244489,1754306045423,-1857.39,0.00041643,2]
[377244490,1754306045436,-7506.25,0.00041643,2]
[377244491,1754306045449,-1191.23,0.00041643,2]
[377244492,1754306045461,-1349.97,0.00041643,2]
[377244493,1754306045474,-1074.04,0.00041643,2]
[377244494,1754306045486,-3769.24,0.00041643,2]
[377244495,1754306045498,-988.14,0.00041643,2]
[377244496,1754306045512,-577.79,0.00041643,2]
[377244497,1754306045525,-1741.31,0.00041643,2]
[377244498,1754306045538,-1932.57,0.00041643,2]
[377244499,1754306045551,-3095.42,0.00041643,2]
[377244500,1754306045563,-1252.42,0.00041643,2]
[377244501,1754306045577,-1555.06,0.00041643,2]
[377244502,1754306045591,-3383.45,0.00041643,2]
[377244503,1754306045605,-400.0,0.00041643,2]
[377244504,1754306045619,-495.93,0.00041643,2]
[377244505,1754306045631,-400.0,0.00041643,2]
[377244506,1754306045644,-2072.61,0.00041643,2]
[377244507,1754306045656,-1985.84,0.00041643,2]
[377244508,1754306045671,-1753.85,0.00041643,2]
[377244509,1754306045684,-400.0,0.00041643,2]
[377244510,1754306045696,-1602.8,0.00041643,2]
[377244511,1754306045710,-3681.37,0.00041643,2]
[377244512,1754306045723,-400.0,0.00041643,2]
[377244513,1754306045735,-1605.29,0.00041643,2]
[377244514,1754306045748,-1613.77,0.00041643,2]
[377244515,1754306045760,-1657.08,0.00041643,2]
[377244516,1754306045773,-1726.45,0.00041643,2]
[377244517,1754306045786,-1109.72,0.00041643,2]
[377244518,1754306045800,-400.0,0.00041643,2]
[377244519,1754306045813,-1265.39,0.00041643,2]
[377244520,1754306045826,-531.77,0.00041643,2]
[377244521,1754306045839,-1790.09,0.00041643,2]
[377244522,1754306045852,-400.0,0.00041643,2]
[377244523,1754306045864,-994.35,0.00041643,2]
[377244524,1754306045876,-2197.37,0.00041643,2]
[377244525,1754306045888,-400.0,0.00041643,2]
[377244526,1754306045901,-1207.63,0.00041643,2]
[377244527,1754306045913,-1697.44,0.00041643,2]
[377244528,1754306045925,-1044.0,0.00041643,2]
[377244529,1754306045939,-1273.07,0.00041643,2]
[377244530,1754306045951,-244.58836629,0.00041643,2]
[377244531,1754306045967,-971.37,0.00041643,2]
[377244532,1754306045979,-1153.38,0.00041643,2]
[377244533,1754306045992,-400.0,0.00041643,2]
[377244534,1754306046005,-1809.15,0.00041643,2]
[377244535,1754306046019,-8777.73,0.00041643,2]
[377244536,1754306046032,-596.6,0.00041643,2]
[377244537,1754306046045,-2275.44,0.00041643,2]
[377244538,1754306046060,-1037.03,0.00041643,2]
[377244539,1754306046074,-599.54,0.00041643,2]
[377244540,1754306046087,-1600.04,0.00041643,2]
[377244541,1754306046100,-490.62,0.00041643,2]
[377244542,1754306046113,-1213.48,0.00041643,2]
[377244543,1754306046125,-1097.82,0.00041643,2]
[377244544,1754306046139,-797.89,0.00041643,2]
[377244545,1754306046152,-6082.8,0.00041643,2]
[377244546,1754306046164,-448.66,0.00041643,2]
[377244547,1754306046177,-596.19,0.00041643,2]
[377244548,1754306046191,-10707.5,0.00041643,2]
[377244549,1754306046204,-1518.17,0.00041643,2]
[377244550,1754306046218,-4934.5,0.00041643,2]
[377244551,1754306046230,-2575.64,0.00041643,2]
[377244552,1754306046243,-400.0,0.00041643,2]
[377244553,1754306046256,-1048.1,0.00041643,2]
[377244554,1754306046269,-2188.32,0.00041643,2]
[377244555,1754306046282,-1936.12,0.00041643,2]
[377244556,1754306046294,-1283.58,0.00041643,2]
[377244557,1754306046306,-1614.51,0.00041643,2]
[377244558,1754306046319,-400.0,0.00041643,2]
[377244559,1754306046330,-586.94,0.00041643,2]
[377244560,1754306046342,-1367.27,0.00041643,2]
[377244561,1754306046354,-400.0,0.00041643,2]
[377244562,1754306046365,-400.0,0.00041643,2]
[377244563,1754306046377,-1400.57,0.00041643,2]
[377244564,1754306046388,-500.49,0.00041643,2]
[377244565,1754306046400,-400.0,0.00041643,2]
[377244566,1754306046411,-1339.76,0.00041643,2]
[377244567,1754306046423,-3431.45,0.00041643,2]
[377244568,1754306046435,-1254.59,0.00041643,2]
[377244569,1754306046447,-1128.88,0.00041643,2]
[377244570,1754306046458,-16704.11,0.00041643,2]
[377244571,1754306046470,-1799.3,0.00041643,2]
[377244572,1754306046481,-4814.39,0.00041643,2]
[377244573,1754306046493,-400.0,0.00041643,2]
[377244574,1754306046504,-1494.19,0.00041643,2]
[377244575,1754306046516,-871.27,0.00041643,2]
[377244576,1754306046528,-1442.54,0.00041643,2]
[377244577,1754306046539,-2112.05,0.00041643,2]
[377244578,1754306046552,-525.6,0.00041643,2]
[377244579,1754306046564,-400.0,0.00041643,2]
[377244580,1754306046575,-2310.1,0.00041643,2]
[377244581,1754306046588,-953.11,0.00041643,2]
[377244582,1754306046600,-637.09,0.00041643,2]
[377244583,1754306046612,-571.02,0.00041643,2]
[377244584,1754306046623,-1651.01,0.00041643,2]
[377244585,1754306046635,-845.12,0.00041643,2]
[377244586,1754306046647,-2192.65,0.00041643,2]
[377244587,1754306046660,-958.06,0.00041643,2]
[377244588,1754306046671,-533.36,0.00041643,2]
[377244589,1754306046683,-3310.33,0.00041643,2]
[377244590,1754306046696,-1650.75,0.00041643,2]
[377244591,1754306046708,-781.29,0.00041643,2]
[377244592,1754306046719,-341.50224191,0.00041643,30]
[377244593,1754306046731,-341.50224191,0.00041643,30]
[377244594,1754306046743,-1000.21942331,0.00041644,10]
[377244595,1754306046755,-250.0,0.00041644,10]
[377244596,1754306046766,-207.0,0.0004166,2]
[377244597,1754306046778,-3500.0,0.0004166,10]
[377244598,1754306046789,-62748.24,0.000417,14]
[377244599,1754306046801,-2588.34,0.00041777,2]
[377244600,1754306046814,-4000.0,0.00041808,10]
[377244601,1754306046828,-4000.0,0.00041851,8]
[377244602,1754306046841,-330.61,0.0004189,30]
[377244603,1754306046853,-537.09,0.0004189,30]
[377244604,1754306046864,-359.08,0.0004189,30]
[377244605,1754306046877,-537.09,0.0004189,30]
[377244606,1754306046889,-359.08,0.0004189,30]
[377244607,1754306046900,-359.08,0.0004189,30]
[377244608,1754306046912,-1179.88,0.00041916,120]
[377244609,1754306046923,-547.58,0.00041917,2]
[377244610,1754306046935,-458.04,0.00041917,2]
[377244611,1754306046947,-1200.66,0.00041917,2]
[377244612,1754306046961,-520.3,0.00041917,2]
[377244613,1754306046972,-586.47,0.00041917,2]
[377244614,1754306046983,-400.0,0.00041917,2]
[377244615,1754306046994,-452.57,0.00041917,2]
[377244616,1754306047006,-1404.01,0.00041917,2]
[377244617,1754306047018,-400.0,0.00041917,2]
[377244618,1754306047029,-472.84,0.00041917,2]
[377244619,1754306047040,-1341.8,0.00041917,2]
[377244620,1754306047052,-484.06,0.00041917,2]
[377244621,1754306047063,-667.41,0.00041917,2]
[377244622,1754306047074,-1693.03,0.00041917,2]
[377244623,1754306047086,-537.19,0.00041917,2]
[377244624,1754306047098,-849.99,0.00041917,2]
[377244625,1754306047109,-931.14,0.00041917,2]
[377244626,1754306047121,-458.07,0.00041917,2]
[377244627,1754306047133,-1076.15,0.00041917,2]
[377244628,1754306047145,-400.0,0.00041917,2]
[377244629,1754306047157,-1903.28,0.00041917,2]
[377244630,1754306047168,-400.0,0.00041917,2]
[377244631,1754306047180,-643.67,0.00041917,2]
[377244632,1754306047191,-1064.8,0.00041917,2]
[377244633,1754306047202,-595.01,0.00041917,2]
[377244634,1754306047214,-1756.29,0.00041917,2]
[377244635,1754306047225,-824.14,0.00041917,2]
[377244636,1754306047236,-400.0,0.00041917,2]
[377244637,1754306047247,-1696.93,0.00041917,2]
[377244638,1754306047259,-767.86,0.00041917,2]
[377244639,1754306047270,-1492.28,0.00041917,2]
[377244640,1754306047282,-400.0,0.00041917,2]
[377244641,1754306047294,-400.0,0.00041917,2]
[377244642,1754306047305,-400.0,0.00041917,2]
[377244643,1754306047316,-661.87,0.00041917,2]
[377244644,1754306047328,-400.0,0.00041917,2]
[377244645,1754306047340,-400.45,0.00041917,2]
[377244646,1754306047352,-1939.24,0.00041917,2]
[377244647,1754306047363,-786.11,0.00041917,2]
[377244648,1754306047375,-835.46,0.00041917,2]
[377244649,1754306048748,-1820.66,0.00041917,2]
[377244650,1754306048760,-463.48,0.00041917,2]
[377244651,1754306048770,-400.0,0.00041917,2]
[377244652,1754306048779,-1385.33,0.00041917,2]
[377244653,1754306048790,-499.13,0.00041917,2]
[377244654,1754306048799,-498.89,0.00041917,2]
[377244655,1754306048809,-1516.62,0.00041917,2]
[377244656,1754306048818,-400.0,0.00041917,2]
[377244657,1754306048827,-400.0,0.00041917,2]
[377244658,1754306048837,-400.0,0.00041917,2]
[377244659,1754306048847,-900.0,0.00041917,2]
[377244660,1754306048857,-550.11,0.00041917,2]
[377244661,1754306048867,-1067.05,0.00041917,2]
[377244662,1754306048876,-454.35,0.00041917,2]
[377244663,1754306048887,-915.17,0.00041917,2]
[377244664,1754306048898,-1153.57,0.00041917,2]
[377244665,1754306048908,-400.0,0.00041917,2]
[377244666,1754306048919,-470.47,0.00041917,2]
[377244667,1754306048930,-400.0,0.00041917,2]
[377244668,1754306048940,-1488.11,0.00041917,2]
[377244669,1754306048954,-742.88,0.00041917,2]
[377244670,1754306048975,-661.14,0.00041917,2]
[377244671,1754306048985,-441.54,0.00041917,2]
[377244672,1754306048995,-916.79,0.00041917,2]
[377244673,1754306049005,-587.55,0.00041917,2]
[377244674,1754306049017,-424.37,0.00041917,2]
[377244675,1754306049027,-1102.43,0.00041917,2]
[377244676,1754306049036,-400.0,0.00041917,2]
[377244677,1754306049047,-1188.91,0.00041917,2]
[377244678,1754306049057,-1819.37,0.00041917,2]
[377244679,1754306049069,-439.11,0.00041917,2]
[377244680,1754306049080,-400.0,0.00041917,2]
[377244681,1754306049092,-1119.27,0.00041917,2]
[377244682,1754306049101,-400.0,0.00041917,2]
[377244683,1754306049113,-884.11,0.00041917,2]
[377244684,1754306049125,-465.18,0.00041917,2]
[377244685,1754306049134,-400.0,0.00041917,2]
[377244686,1754306049144,-1124.7,0.00041917,2]
[377244687,1754306049153,-953.16,0.00041917,2]
[377244688,1754306049163,-449.54,0.00041917,2]
[377244689,1754306049172,-400.0,0.00041917,2]
[377244690,1754306049182,-977.67,0.00041917,2]
[377244691,1754306049191,-1903.44,0.00041917,2]
[377244692,1754306049201,-2558.85,0.00041917,2]
[377244693,1754306049211,-480.36,0.00041917,2]
[377244694,1754306049220,-400.0,0.00041917,2]
[377244695,1754306049229,-2716.06,0.00041917,2]
[377244696,1754306049239,-1797.0,0.00041917,2]
[377244697,1754306049248,-400.0,0.00041917,2]
[377244698,1754306049258,-1399.58,0.00041917,2]
[377244699,1754306049267,-459.32,0.00041917,2]
[377244700,1754306049276,-687.73,0.00041917,2]
[377244701,1754306049286,-400.0,0.00041917,2]
[377244702,1754306049296,-452.62,0.00041917,2]
[377244703,1754306049305,-1027.4,0.00041917,2]
[377244704,1754306049314,-400.0,0.00041917,2]
[377244705,1754306049325,-743.48,0.00041917,2]
[377244706,1754306049334,-4159.78,0.00041917,2]
[377244707,1754306049344,-2022.23,0.00041917,2]
[377244708,1754306049354,-500.0,0.00041917,2]
[377244709,1754306049363,-400.0,0.00041917,2]
[377244710,1754306049373,-400.0,0.00041917,2]
[377244711,1754306049382,-1103.2,0.00041917,2]
[377244712,1754306049392,-2146.76,0.00041917,2]
[377244713,1754306049401,-545.62729198,0.00041917,2]
[377244714,1754306049411,-697.9,0.00041917,2]
[377244715,1754306049420,-700.27,0.00041917,2]
[377244716,1754306049430,-1197.92,0.00041917,2]
[377244717,1754306049440,-442.05,0.00041917,2]
[377244718,1754306049449,-400.0,0.00041917,2]
[377244719,1754306049459,-763.21,0.00041917,2]
[377244720,1754306049468,-664.53,0.00041917,2]
[377244721,1754306049480,-862.35,0.00041917,2]
[377244722,1754306049490,-624.93,0.00041917,2]
[377244723,1754306049499,-793.15,0.00041917,2]
[377244724,1754306049509,-639.19,0.00041917,2]
[377244725,1754306049518,-605.24,0.00041917,2]
[377244726,1754306049527,-400.0,0.00041917,2]
[377244727,1754306049537,-2472.68,0.00041917,2]
[377244728,1754306049546,-1841.68,0.00041917,2]
[377244729,1754306049556,-1091.38,0.00041917,2]
[377244730,1754306049565,-569.15,0.00041917,2]
[377244731,1754306049575,-482.87,0.00041917,2]
[377244732,1754306049584,-398.4120855,0.00041917,2]
[377244733,1754306049593,-1179.1,0.00041917,2]
[377244734,1754306049603,-400.0,0.00041917,2]
[377244735,1754306049612,-1320.13,0.00041917,2]
[377244736,1754306049622,-1348.28,0.00041917,2]
[377244737,1754306049631,-908.97,0.00041917,2]
[377244738,1754306049640,-1407.62,0.00041917,2]
[377244739,1754306049650,-1144.27,0.00041917,2]
[377244740,1754306049660,-448.56,0.00041917,2]
[377244741,1754306049669,-400.0,0.00041917,2]
[377244742,1754306049679,-853.71,0.00041917,2]
[377244743,1754306049689,-609.84,0.00041917,2]
[377244744,1754306049698,-400.0,0.00041917,2]
[377244745,1754306049708,-1274.99,0.00041917,2]
[377244746,1754306049717,-600.02,0.00041917,2]
[377244747,1754306049727,-800.16,0.00041917,2]
[377244748,1754306049736,-2778.93,0.00041917,2]
[377244749,1754306049746,-500.6,0.00041917,2]
[377244750,1754306049755,-499.94,0.00041917,2]
[377244751,1754306049765,-627.38,0.00041917,2]
[377244752,1754306049775,-787.7,0.00041917,2]
[377244753,1754306049784,-461.32,0.00041917,2]
[377244754,1754306049795,-1107.49,0.00041917,2]
[377244755,1754306049804,-420.65273202,0.00041917,2]
[377244756,1754306049814,-400.0,0.00041917,2]
[377244757,1754306049824,-1182.54,0.00041917,2]
[377244758,1754306049833,-2273.69,0.00041917,2]
[377244759,1754306049843,-790.39,0.00041917,2]
[377244760,1754306049852,-400.0,0.00041917,2]
[377244761,1754306049862,-400.0,0.00041917,2]
[377244762,1754306049871,-400.0,0.00041917,2]
[377244763,1754306049881,-2544.09,0.00041917,2]
[377244764,1754306049891,-746.2,0.00041917,2]
[377244765,1754306049901,-1066.14,0.00041917,2]
[377244766,1754306049910,-513.6,0.00041917,2]
[377244767,1754306049920,-856.62,0.00041917,2]
[377244768,1754306049932,-445.82,0.00041917,2]
[377244769,1754306049942,-1070.42,0.00041917,2]
[377244770,1754306049952,-548.68,0.00041917,2]
[377244771,1754306049966,-400.0,0.00041917,2]
[377244772,1754306049976,-413.36,0.00041917,2]
[377244773,1754306049986,-400.0,0.00041917,2]
[377244774,1754306049996,-460.79,0.00041917,2]
[377244775,1754306050005,-865.19,0.00041917,2]
[377244776,1754306050015,-1968.28,0.00041917,2]
[377244777,1754306050024,-1422.91,0.00041917,2]
[377244778,1754306050034,-400.0,0.00041917,2]
[377244779,1754306050043,-1000.0,0.00041917,2]
[377244780,1754306050053,-1119.16,0.00041917,2]
[377244781,1754306050063,-1354.16,0.00041917,2]
[377244782,1754306050072,-625.15,0.00041917,2]
[377244783,1754306050082,-400.0,0.00041917,2]
[377244784,1754306050092,-1598.25,0.00041917,2]
[377244785,1754306050101,-1192.41,0.00041917,2]
[377244786,1754306050111,-400.0,0.00041917,2]
[377244787,1754306050121,-668.58,0.00041917,2]
[377244788,1754306050130,-575.89,0.00041917,2]
[377244789,1754306050140,-336.89406657,0.00041917,2]
[377244790,1754306050150,-1116.34,0.00041917,2]
[377244791,1754306050159,-1214.62,0.00041917,2]
[377244792,1754306050169,-1137.04,0.00041917,2]
[377244793,1754306050178,-1590.64,0.00041917,2]
[377244794,1754306050188,-400.0,0.00041917,2]
[377244795,1754306050197,-1069.29,0.00041917,2]
[377244796,1754306050206,-1138.57,0.00041917,2]
[377244797,1754306050215,-400.0,0.00041917,2]
[377244798,1754306050225,-400.0,0.00041917,2]
[377244799,1754306050235,-1131.33,0.00041917,2]
[377244800,1754306050245,-400.0,0.00041917,2]
[377244801,1754306050254,-400.0,0.00041917,2]
[377244802,1754306050264,-1171.06,0.00041917,2]
[377244803,1754306050274,-894.77,0.00041917,2]
[377244804,1754306050283,-1384.7,0.00041917,2]
[377244805,1754306050293,-599.89,0.00041917,2]
[377244806,1754306050302,-2355.79,0.00041917,2]
[377244807,1754306050312,-1091.28,0.00041917,2]
[377244808,1754306050321,-400.0,0.00041917,2]
[377244809,1754306050330,-400.0,0.00041917,2]
[377244810,1754306050340,-2327.34,0.00041917,2]
[377244811,1754306050350,-781.86,0.00041917,2]
[377244812,1754306050359,-773.66,0.00041917,2]
[377244813,1754306050368,-501.83,0.00041917,2]
[377244814,1754306050378,-1915.51,0.00041917,2]
[377244815,1754306050387,-400.0,0.00041917,2]
[377244816,1754306050398,-829.75,0.00041917,2]
[377244817,1754306050408,-892.62,0.00041917,2]
[377244818,1754306050417,-538.38,0.00041917,2]
[377244819,1754306050427,-1000.94,0.00041917,2]
[377244820,1754306050436,-1098.02,0.00041917,2]
[377244821,1754306050446,-1453.05,0.00041917,2]
[377244822,1754306050456,-695.84,0.00041917,2]
[377244823,1754306050465,-437.7,0.00041917,2]
[377244824,1754306050475,-1242.82,0.00041917,2]
[377244825,1754306050485,-724.66,0.00041917,2]
[377244826,1754306050494,-1119.1,0.00041917,2]
[377244827,1754306050504,-917.85,0.00041917,2]
[377244828,1754306050513,-2290.17,0.00041917,2]
[377244829,1754306050523,-1165.58,0.00041917,2]
[377244830,1754306050532,-400.0,0.00041917,2]
[377244831,1754306050542,-1308.63,0.00041917,2]
[377244832,1754306050551,-906.75,0.00041917,2]
[377244833,1754306050562,-801.64,0.00041917,2]
[377244834,1754306050572,-564.37,0.00041917,2]
[377244835,1754306050581,-918.46,0.00041917,2]
[377244836,1754306050591,-400.0,0.00041917,2]
[377244837,1754306050601,-2104.64,0.00041917,2]
[377244838,1754306050611,-1334.51,0.00041917,2]
[377244839,1754306050620,-781.51,0.00041917,2]
[377244840,1754306050630,-1040.59,0.00041917,2]
[377244841,1754306050640,-1397.01,0.00041917,2]
[377244842,1754306050649,-1874.18,0.00041917,2]
[377244843,1754306050659,-1021.01,0.00041917,2]
[377244844,1754306050669,-1353.35,0.00041917,2]
[377244845,1754306050678,-400.0,0.00041917,2]
[377244846,1754306050688,-1025.08,0.00041917,2]
[377244847,1754306050698,-627.8,0.00041917,2]
[377244848,1754306050708,-1868.95,0.00041917,2]
[377244849,1754306050718,-914.79,0.00041917,2]
[377244850,1754306050728,-468.7,0.00041917,2]
[377244851,1754306050738,-1387.83,0.00041917,2]
[377244852,1754306050747,-1314.14,0.00041917,2]
[377244853,1754306050757,-1038.98,0.00041917,2]
[377244854,1754306050766,-1014.44,0.00041917,2]
[377244855,1754306050776,-935.88,0.00041917,2]
[377244856,1754306050785,-925.88,0.00041917,2]
[377244857,1754306050795,-400.0,0.00041917,2]
[377244858,1754306050805,-590.39,0.00041917,2]
[377244859,1754306050814,-1614.1,0.00041917,2]
[377244860,1754306050824,-710.0,0.00041917,2]
[377244861,1754306050835,-1412.5,0.00041917,2]
[377244862,1754306050845,-608.78,0.00041917,2]
[377244863,1754306050855,-400.0,0.00041917,2]
[377244864,1754306050864,-1252.59,0.00041917,2]
[377244865,1754306050874,-400.0,0.00041917,2]
[377244866,1754306050884,-856.19,0.00041917,2]
[377244867,1754306050893,-1142.6,0.00041917,2]
[377244868,1754306050903,-695.98,0.00041917,2]
[377244869,1754306050913,-400.0,0.00041917,2]
[377244870,1754306050924,-543.15352674,0.00041917,2]
[377244871,1754306050934,-793.48,0.00041917,2]
[377244872,1754306050944,-810.9,0.00041917,2]
[377244873,1754306050953,-1752.3,0.00041917,2]
[377244874,1754306050967,-400.0,0.00041917,2]
[377244875,1754306050976,-1639.2,0.00041917,2]
[377244876,1754306050986,-1057.57,0.00041917,2]
[377244877,1754306050998,-400.0,0.00041917,2]
[377244878,1754306051011,-1894.1,0.00041917,2]
[377244879,1754306051022,-400.0,0.00041917,2]
[377244880,1754306051161,-400.0,0.00041917,2]
[377244881,1754306051171,-1899.23,0.00041917,2]
[377244882,1754306051181,-1066.82,0.00041917,2]
[377244883,1754306051190,-1326.33,0.00041917,2]
[377244884,1754306051199,-405.69,0.00041917,2]
[377244885,1754306051208,-1189.48,0.00041917,2]
[377244886,1754306051219,-1704.15,0.00041917,2]
[377244887,1754306051230,-1046.61,0.00041917,2]
[377244888,1754306051239,-400.0,0.00041917,2]
[377244889,1754306051249,-833.04,0.00041917,2]
[377244890,1754306051258,-400.0,0.00041917,2]
[377244891,1754306051268,-684.99,0.00041917,2]
[377244892,1754306051278,-400.0,0.00041917,2]
[377244893,1754306051288,-925.69,0.00041917,2]
[377244894,1754306051296,-482.48,0.00041917,2]
[377244895,1754306051305,-596.8,0.00041917,2]
[377244896,1754306051314,-1463.3,0.00041917,2]
[377244897,1754306051323,-1295.25,0.00041917,2]
[377244898,1754306051332,-2145.64,0.00041917,2]
[377244899,1754306051341,-1283.66,0.00041917,2]
[377244900,1754306051351,-758.52,0.00041917,2]
[377244901,1754306051361,-1612.63,0.00041917,2]
[377244902,1754306051370,-721.69,0.00041917,2]
[377244903,1754306051379,-896.0,0.00041917,2]
[377244904,1754306051388,-766.66,0.00041917,2]
[377244905,1754306051398,-453.42,0.00041917,2]
[377244906,1754306051407,-7192.74,0.00041917,2]
[377244907,1754306051416,-627.97,0.00041917,2]
[377244908,1754306051425,-988.46,0.00041917,2]
[377244909,1754306051434,-400.0,0.00041917,2]
[377244910,1754306051444,-400.0,0.00041917,2]
[377244911,1754306051453,-1762.88,0.00041917,2]
[377244912,1754306051462,-1472.33,0.00041917,2]
[377244913,1754306051471,-400.0,0.00041917,2]
[377244914,1754306051481,-1303.02,0.00041917,2]
[377244915,1754306051490,-796.7,0.00041917,2]
[377244916,1754306051499,-1414.12,0.00041917,2]
[377244917,1754306051508,-700.57,0.00041917,2]
[377244918,1754306051518,-553.07,0.00041917,2]
[377244919,1754306051527,-986.33,0.00041917,2]
[377244920,1754306051537,-658.58,0.00041917,2]
[377244921,1754306051546,-400.0,0.00041917,2]
[377244922,1754306051556,-400.0,0.00041917,2]
[377244923,1754306051566,-499.21,0.00041917,2]
[377244924,1754306051576,-1836.51,0.00041917,2]
[377244925,1754306051585,-1050.51,0.00041917,2]
[377244926,1754306051595,-682.1,0.00041917,2]
[377244927,1754306051605,-739.68,0.00041917,2]
[377244928,1754306051615,-1274.01,0.00041917,2]